bitfinex/quotes_BTCUSD_20241211
["timestamp","ask_amount","ask_price","bid_price","bid_amount"]
[1733934180734,0.0030438,100950.0,100940.0,0.21267904]
[1733934181267,0.0030438,100950.0,100940.0,0.30071755]
[1733934181829,0.0030438,100950.0,100940.0,0.30171755]
[1733934182585,0.0030438,100950.0,100940.0,0.30271755]
[1733934183135,0.17286732,100970.0,100950.0,0.198112]
[1733934183366,0.12317577,100970.0,100950.0,0.31171904]
[1733934183565,0.27317577,100970.0,100950.0,0.31171904]
[1733934183769,0.27317577,100970.0,100950.0,0.49027304]
[1733934183969,0.14045045,100970.0,100950.0,0.57831155]
[1733934184330,0.29461542,100970.0,100950.0,0.39221904]
[1733934184537,0.29461542,100970.0,100950.0,0.21366504]
[1733934184739,0.29761542,100970.0,100950.0,0.199112]
[1733934184967,0.14761542,100970.0,100950.0,0.31272304]
[1733934185170,0.29761542,100970.0,100950.0,0.31272304]
[1733934185449,0.29461542,100970.0,100950.0,0.31272304]
[1733934185823,0.29761542,100970.0,100950.0,0.21366504]
[1733934186027,0.29761542,100970.0,100950.0,0.31272004]
[1733934186299,0.29461542,100970.0,100950.0,0.31272004]
[1733934186499,0.5393,100960.0,100950.0,0.31272004]
[1733934186852,0.5388,100960.0,100950.0,0.31172004]
[1733934187116,0.5388,100960.0,100950.0,0.21266504]
[1733934187654,0.17043965,100970.0,100960.0,0.099049]
[1733934187858,0.02043965,100970.0,100960.0,0.21266004]
[1733934188075,0.02143965,100970.0,100960.0,0.21266004]
[1733934188288,0.02143965,100970.0,100960.0,0.30069855]
[1733934188457,0.02043965,100970.0,100960.0,0.30069855]
[1733934188656,0.02043965,100970.0,100960.0,0.30169855]
[1733934188886,0.02043965,100970.0,100960.0,0.30269855]
[1733934189267,0.02043965,100970.0,100960.0,0.54686849]
[1733934189470,0.02043965,100970.0,100960.0,1.33706026]
[1733934189670,0.02043965,100970.0,100960.0,1.60385655]
[1733934189875,0.02043965,100970.0,100960.0,1.51581804]
[1733934190553,0.02043965,100970.0,100960.0,0.75925471]
[1733934190754,0.02043965,100970.0,100960.0,0.22067621]
[1733934190983,0.04343965,100970.0,100960.0,0.01]
[1733934191637,0.02043965,100970.0,100950.0,0.46171804]
[1733934191792,0.02043965,100970.0,100960.0,0.44271949]
[1733934191994,0.02043965,100970.0,100960.0,0.7664447]
[1733934192371,0.02039965,100970.0,100960.0,1.00743137]
[1733934192578,0.02039965,100970.0,100960.0,1.00843137]
[1733934193240,0.02039965,100970.0,100960.0,0.62838693]
[1733934193439,0.02039965,100970.0,100960.0,0.63238693]
[1733934193648,0.02039965,100970.0,100960.0,0.63268693]
[1733934193849,0.02039965,100970.0,100960.0,0.63168693]
[1733934194090,0.02039965,100970.0,100960.0,0.54906849]
[1733934194340,0.02039965,100970.0,100960.0,0.54406849]
[1733934194507,0.02039965,100970.0,100960.0,0.54106849]
[1733934194711,0.02039965,100970.0,100960.0,0.55006849]
[1733934194914,0.02039965,100970.0,100960.0,0.55506849]
[1733934196582,0.02039965,100970.0,100960.0,0.29145745]
[1733934197140,0.02039965,100970.0,100960.0,0.263349]
[1733934197345,0.02039965,100970.0,100960.0,0.113349]
[1733934197589,0.02039965,100970.0,100960.0,0.263349]
[1733934197762,0.02039965,100970.0,100960.0,0.47726849]
[1733934198497,0.55969965,100970.0,100960.0,0.263349]
[1733934199359,0.55969965,100970.0,100960.0,0.113349]
[1733934199917,0.55939568,100970.0,100960.0,0.113349]
[1733934200692,0.53958768,100970.0,100960.0,0.113349]
[1733934200908,0.02511848,100980.0,100970.0,0.23]
[1733934201113,4.8e-07,100980.0,100970.0,0.69295849]
[1733934201340,7.98342147,101000.0,100990.0,0.2263]
[1733934201552,7.98342147,101000.0,100990.0,0.44021949]
[1733934201762,7.98342147,101000.0,100990.0,0.59021949]
[1733934201963,7.98342147,101000.0,100990.0,0.68923849]
[1733934202597,7.98342147,101000.0,100990.0,1.15925323]
[1733934202798,7.98342147,101000.0,100990.0,1.33575034]
[1733934203072,7.98642147,101000.0,100990.0,1.34935645]
[1733934203302,7.98742147,101000.0,100990.0,1.1576531]
[1733934203478,7.98742147,101000.0,100990.0,0.77646381]
[1733934204075,7.98742147,101000.0,100990.0,0.90731457]
[1733934204282,7.98742147,101000.0,100990.0,1.15813958]
[1733934204507,7.91842146,101000.0,100990.0,0.90731457]
[1733934204719,7.91842146,101000.0,100990.0,0.68923849]
[1733934204720,7.92875082,101000.0,100990.0,0.68923849]
[1733934204893,7.92875082,101000.0,100990.0,0.42562745]
[1733934205584,7.92875082,101000.0,100990.0,0.099019]
[1733934205789,8.46805082,101000.0,100990.0,0.099019]
[1733934206007,7.92875082,101000.0,100990.0,0.54453849]
[1733934206211,7.86934482,101000.0,100990.0,0.69453849]
[1733934206432,7.82974082,101000.0,100990.0,0.69979317]
[1733934206843,7.82974082,101000.0,100990.0,0.74619317]
[1733934207271,7.82574082,101000.0,100990.0,0.74619317]
[1733934207515,7.82574082,101000.0,100990.0,0.78783019]
[1733934207715,7.82574082,101000.0,100990.0,1.35680573]
[1733934207920,7.82574082,101000.0,100990.0,0.67412676]
[1733934208125,7.82574082,101000.0,100990.0,0.58718213]
[1733934208401,7.82574082,101000.0,100990.0,0.58818213]
[1733934208827,7.82574082,101000.0,100990.0,0.58718213]
[1733934209234,7.82574082,101000.0,100990.0,0.58618213]
[1733934209479,7.75774081,101000.0,100990.0,0.58718213]
[1733934209690,7.75874081,101000.0,100990.0,0.58818213]
[1733934209895,7.75774081,101000.0,100990.0,0.58718213]
[1733934210167,7.75874081,101000.0,100990.0,0.58818213]
[1733934210600,7.75774081,101000.0,100990.0,0.58718213]
[1733934210817,7.73793881,101000.0,100990.0,0.59618213]
[1733934211017,7.65873081,101000.0,100990.0,0.70979317]
[1733934211236,7.65873081,101000.0,100990.0,1.48465542]
[1733934211237,7.58325412,101000.0,100990.0,1.48465542]
[1733934211459,7.58325412,101000.0,100990.0,1.17982388]
[1733934211460,7.57372081,101000.0,100990.0,1.17982388]
[1733934211668,7.57472081,101000.0,100990.0,1.48301172]
[1733934212101,7.57372081,101000.0,100990.0,1.48301172]
[1733934212328,7.57372081,101000.0,100990.0,0.80062725]
[1733934212543,7.57372081,101000.0,100990.0,0.71379317]
[1733934214480,7.5047208,101000.0,100990.0,0.71379317]
[1733934215724,7.4849188,101000.0,100990.0,0.71379317]
[1733934215931,7.4057108,101000.0,100990.0,0.71379317]
[1733934216133,7.3067008,101000.0,100990.0,0.93088437]
[1733934216409,7.3067008,101000.0,100990.0,1.35606129]
[1733934216821,7.3067008,101000.0,100990.0,1.18039349]
[1733934216823,7.3067008,101000.0,100990.0,1.35406965]
[1733934217075,7.30725017,101000.0,100990.0,1.19039349]
[1733934217352,7.30725017,101000.0,100990.0,0.72379317]
[1733934219636,7.2279208,101000.0,100990.0,0.72379317]
[1733934220551,7.2279208,101000.0,100990.0,0.74372036]
[1733934220760,7.1289108,101000.0,100990.0,0.74372036]
[1733934221185,7.0299008,101000.0,100990.0,0.74372036]
[1733934221395,7.0299008,101000.0,100990.0,0.8573314]
[1733934221608,7.0299008,101000.0,100990.0,0.9044314]
[1733934221815,7.0299008,101000.0,100990.0,0.8994314]
[1733934222026,6.9704948,101000.0,100990.0,0.8914314]
[1733934222233,6.9318908,101000.0,100990.0,1.70315244]
[1733934222434,6.9328908,101000.0,100990.0,1.8113576]
[1733934222640,6.9328908,101000.0,100990.0,1.95315244]
[1733934222641,6.9318908,101000.0,100990.0,1.95315244]
[1733934223046,6.33846467,101000.0,100990.0,1.93323987]
[1733934223253,6.26136467,101000.0,100990.0,1.70626319]
[1733934223467,6.25936467,101000.0,100990.0,1.53070928]
[1733934223673,6.15936467,101000.0,100990.0,1.40152255]
[1733934223889,6.16036467,101000.0,100990.0,1.53270928]
[1733934224100,6.10095867,101000.0,100990.0,1.53270928]
[1733934224311,5.78755022,101000.0,100990.0,2.43275943]
[1733934224524,5.52536962,101000.0,100990.0,2.13708849]
[1733934224731,5.42885509,101000.0,100990.0,2.15393393]
[1733934224952,5.42885509,101000.0,100990.0,3.93129158]
[1733934225151,5.32884509,101000.0,100990.0,3.81609544]
[1733934225360,5.32884509,101000.0,100990.0,3.40785545]
[1733934225782,5.2903551,101000.0,100990.0,3.40785545]
[1733934226010,5.2705531,101000.0,100990.0,3.53800829]
[1733934226227,5.1913451,101000.0,100990.0,3.32109544]
[1733934226436,5.1913451,101000.0,100990.0,3.23432715]
[1733934227063,5.1517411,101000.0,100990.0,3.40785743]
[1733934227272,5.0923351,101000.0,100990.0,3.40785743]
[1733934227500,5.08273844,101000.0,100990.0,3.40785743]
[1733934228184,5.00353044,101000.0,100990.0,3.32109544]
[1733934228395,4.98372844,101000.0,100990.0,3.40780428]
[1733934228829,4.98152844,101000.0,100990.0,3.40780428]
[1733934229044,4.92212244,101000.0,100990.0,3.44343334]
[1733934229284,4.88251844,101000.0,100990.0,3.57363735]
[1733934229494,4.87126694,101000.0,100990.0,3.57355702]
[1733934229707,4.75326571,101000.0,100990.0,2.7102728]
[1733934229917,4.75326571,101000.0,100990.0,4.66762164]
[1733934230131,4.64144683,101000.0,100990.0,4.59409136]
[1733934230348,4.64144683,101000.0,100990.0,4.55063143]
[1733934230349,4.63831534,101000.0,100990.0,4.55063143]
[1733934230577,4.62706384,101000.0,100990.0,3.66628643]
[1733934230791,4.43637225,101000.0,100990.0,3.94637212]
[1733934231003,4.41657025,101000.0,100990.0,3.94637212]
[1733934231211,4.35716425,101000.0,100990.0,3.94637212]
[1733934231425,4.32401075,101000.0,100990.0,3.94637212]
[1733934231867,4.31275925,101000.0,100990.0,3.94637212]
[1733934232083,4.24210175,101000.0,100990.0,3.94637212]
[1733934232294,4.20249775,101000.0,100990.0,3.94637212]
[1733934232496,4.19124625,101000.0,100990.0,3.94637212]
[1733934232717,4.17999475,101000.0,100990.0,3.94637212]
[1733934233131,4.12555765,101000.0,100990.0,3.94637212]
[1733934233338,4.06615165,101000.0,100990.0,3.94637212]
[1733934233546,4.05490015,101000.0,100990.0,3.94637212]
[1733934233979,4.03509815,101000.0,100990.0,3.94637212]
[1733934234616,3.87563864,101000.0,100990.0,3.29828643]
[1733934235044,3.85583664,101000.0,100990.0,3.29828643]
[1733934235261,3.77662864,101000.0,100990.0,3.26265737]
[1733934235940,3.76490114,101000.0,100990.0,3.26265737]
[1733934236154,3.67228689,101000.0,100990.0,3.26265737]
[1733934236361,3.64798177,101000.0,100990.0,3.16265737]
[1733934236584,3.63175077,101000.0,100990.0,2.8533243]
[1733934237016,3.59214677,101000.0,100990.0,2.5498061]
[1733934237217,3.53274077,101000.0,100990.0,2.46304775]
[1733934237635,3.53274077,101000.0,100990.0,3.24004775]
[1733934238055,3.45453277,101000.0,100990.0,3.24104775]
[1733934238271,3.43473077,101000.0,100990.0,3.24004775]
[1733934238692,3.43473077,101000.0,100990.0,3.24104775]
[1733934238693,3.43573077,101000.0,100990.0,3.24104775]
[1733934238902,3.43573077,101000.0,100990.0,3.26404775]
[1733934239124,3.33972077,101000.0,100990.0,3.26404775]
[1733934239335,3.33972077,101000.0,100990.0,3.24104775]
[1733934239552,3.26772076,101000.0,100990.0,3.24104775]
[1733934239758,3.27072076,101000.0,100990.0,3.24104775]
[1733934239961,3.26672148,101000.0,100990.0,3.24104775]
[1733934240402,3.26672148,101000.0,100990.0,3.09104775]
[1733934240610,3.26672148,101000.0,100990.0,2.99104775]
[1733934241252,3.26672148,101000.0,100990.0,2.54104775]
[1733934241523,3.26472148,101000.0,100990.0,2.54004775]
[1733934241782,3.17471148,101000.0,100990.0,2.93236925]
[1733934242027,3.17171148,101000.0,100990.0,2.93236925]
[1733934242280,3.07270148,101000.0,100990.0,3.08236926]
[1733934242521,3.07870148,101000.0,100990.0,3.00844859]
[1733934242729,3.07270148,101000.0,100990.0,3.29967681]
[1733934243158,2.98169148,101000.0,100990.0,3.30067681]
[1733934243413,2.98169148,101000.0,100990.0,4.10649324]
[1733934243625,2.98169148,101000.0,100990.0,3.83614737]
[1733934243839,2.9759753,101000.0,100990.0,3.83614737]
[1733934244050,2.9363713,101000.0,100990.0,3.81314737]
[1733934244262,2.8769653,101000.0,100990.0,3.81314737]
[1733934244468,2.79896529,101000.0,100990.0,3.03514737]
[1733934244684,2.79019442,101000.0,100990.0,3.03514737]
[1733934244890,2.78728374,101000.0,100990.0,3.03514737]
[1733934245101,2.70807574,101000.0,100990.0,3.33275385]
[1733934245311,2.68827374,101000.0,100990.0,3.04321131]
[1733934245526,2.68027374,101000.0,100990.0,2.74594361]
[1733934245732,2.68027374,101000.0,100990.0,3.30521624]
[1733934245949,2.68427374,101000.0,100990.0,3.30521624]
[1733934246156,2.58526374,101000.0,100990.0,2.74594361]
[1733934246361,2.58526374,101000.0,100990.0,3.39372956]
[1733934246564,2.56367881,101000.0,100990.0,3.09552167]
[1733934246780,2.56367881,101000.0,100990.0,3.39370347]
[1733934246979,2.54387681,101000.0,100990.0,3.09370347]
[1733934247218,2.46466881,101000.0,100990.0,2.84643667]
[1733934247401,2.46466881,101000.0,100990.0,2.84638048]
[1733934247602,2.46466881,101000.0,100990.0,2.41032435]
[1733934247814,2.46466881,101000.0,100990.0,3.00926402]
[1733934248036,2.40526281,101000.0,100990.0,2.59636056]
[1733934248238,2.36565881,101000.0,100990.0,2.59636056]
[1733934248644,2.36303624,101000.0,100990.0,2.89460067]
[1733934248866,2.36303624,101000.0,100990.0,2.59636056]
[1733934249080,2.26402624,101000.0,100990.0,2.59636056]
[1733934249298,2.26402624,101000.0,100990.0,2.26255173]
[1733934249508,2.19502623,101000.0,100990.0,2.26255173]
[1733934249728,2.19502623,101000.0,100990.0,2.37408242]
[1733934249938,2.19502623,101000.0,100990.0,2.52409012]
[1733934250167,2.09601623,101000.0,100990.0,2.52409012]
[1733934250422,2.09601623,101000.0,100990.0,1.92409012]
[1733934250679,2.14241623,101000.0,100990.0,1.77409012]
[1733934250934,2.14241623,101000.0,100990.0,1.43198662]
[1733934251424,2.14241623,101000.0,100990.0,1.21387684]
[1733934251679,2.14241623,101000.0,100990.0,1.1002658]
[1733934251922,2.14241623,101000.0,100990.0,1.2502658]
[1733934252172,2.14241623,101000.0,100990.0,1.2502178]
[1733934252423,2.14241623,101000.0,100990.0,1.66704257]
[1733934252660,2.14241623,101000.0,100990.0,1.62536723]
[1733934252872,2.14241623,101000.0,100990.0,1.2502178]
[1733934253079,2.14241623,101000.0,100990.0,1.51175619]
[1733934253291,2.19051623,101000.0,100990.0,1.2502178]
[1733934253520,2.18291623,101000.0,100990.0,1.26137252]
[1733934253734,2.18291623,101000.0,100990.0,1.11344517]
[1733934254389,2.17891623,101000.0,100990.0,1.37488356]
[1733934254602,2.10291622,101000.0,100990.0,1.11334517]
[1733934254859,2.10691622,101000.0,100990.0,1.11334517]
[1733934255074,2.11591622,101000.0,100990.0,1.11434517]
[1733934255283,2.11191622,101000.0,100990.0,1.11434517]
[1733934255490,2.11791622,101000.0,100990.0,1.37588356]
[1733934255730,2.11791622,101000.0,100990.0,1.33269584]
[1733934256215,2.11791622,101000.0,100990.0,1.50745796]
[1733934256851,2.10891622,101000.0,100990.0,1.50645796]
[1733934257061,2.11791622,101000.0,100990.0,1.50645796]
[1733934257282,2.11191622,101000.0,100990.0,1.50645796]
[1733934257692,2.11891622,101000.0,100990.0,0.76358696]
[1733934257901,2.11891622,101000.0,100990.0,0.85267883]
[1733934258334,2.11891622,101000.0,100990.0,0.4388562]
[1733934258753,2.11891622,101000.0,100990.0,0.31726506]
[1733934258964,2.11891622,101000.0,100990.0,0.5418931]
[1733934259389,2.11891622,101000.0,100990.0,0.3027761]
[1733934259614,2.04991621,101000.0,100990.0,0.3027761]
[1733934259825,2.04991621,101000.0,100990.0,0.18916506]
[1733934260033,2.04091621,101000.0,100990.0,0.3026567]
[1733934260258,2.04291621,101000.0,100990.0,0.3026567]
[1733934260700,2.04391621,101000.0,100990.0,0.3026567]
[1733934261215,2.06468098,101000.0,100990.0,0.3026567]
[1733934261429,2.07268098,101000.0,100990.0,0.3026567]
[1733934261638,2.05091621,101000.0,100990.0,0.4526567]
[1733934262489,2.05091621,101000.0,100990.0,0.18904566]
[1733934262697,2.05091621,101000.0,100990.0,0.09386167]
[1733934262914,2.05091621,101000.0,100990.0,0.00650886]
[1733934263330,2.16622466,101000.0,100990.0,0.00650886]
[1733934263506,2.03272466,101000.0,100980.0,0.08735281]
[1733934263739,0.1287,100980.0,100970.0,0.20096385]
[1733934263948,0.1287,100980.0,100970.0,0.11361104]
[1733934264150,0.1287,100980.0,100970.0,0.29009885]
[1733934264357,0.1287,100980.0,100970.0,0.20274604]
[1733934264543,0.05969999,100980.0,100970.0,0.20274604]
[1733934264985,0.06869999,100980.0,100970.0,0.20274604]
[1733934265213,0.07669999,100980.0,100970.0,0.11361104]
[1733934265428,0.07669999,100980.0,100960.0,0.37924185]
[1733934265639,0.0668,100980.0,100970.0,0.11361104]
[1733934266313,0.0578,100980.0,100970.0,0.11361104]
[1733934266521,0.0538,100980.0,100970.0,0.11361104]
[1733934266732,0.0548,100980.0,100970.0,0.11361104]
[1733934266944,0.0548,100980.0,100960.0,0.26361104]
[1733934267153,0.5941,100980.0,100950.0,0.44011085]
[1733934267355,0.0469,100970.0,100950.0,0.089147]
[1733934267604,0.0469,100970.0,100950.0,0.20275804]
[1733934267820,0.076,100960.0,100950.0,0.11361104]
[1733934268251,0.1229,100960.0,100950.0,0.11361104]
[1733934268884,0.1229,100960.0,100940.0,0.35276504]
[1733934269088,0.1229,100960.0,100950.0,0.11377601]
[1733934269513,0.1459,100960.0,100950.0,0.00016497]
[1733934269743,0.07689999,100960.0,100950.0,0.00016497]
[1733934269951,0.86650844,100960.0,100950.0,0.00016497]
[1733934270198,0.0477,100940.0,100920.0,0.11361104]
[1733934270416,0.0477,100940.0,100930.0,0.11361104]
[1733934270836,0.0477,100940.0,100930.0,0.20278104]
[1733934271287,0.0477,100940.0,100930.0,0.08917]
[1733934271518,0.0477,100940.0,100930.0,0.20278104]
[1733934271957,0.0477,100940.0,100930.0,0.45308949]
[1733934272168,0.05026472,100960.0,100950.0,0.239153]
[1733934272392,0.00116472,100960.0,100950.0,0.71668353]
[1733934272600,0.00016472,100960.0,100950.0,0.81668353]
[1733934272864,0.00016472,100960.0,100950.0,0.84653279]
[1733934273072,0.00016472,100960.0,100950.0,0.81668353]
[1733934273491,0.00016472,100960.0,100950.0,0.71668353]
[1733934273767,0.00516472,100960.0,100950.0,0.71668353]
[1733934274316,0.00416472,100960.0,100950.0,0.71668353]
[1733934274562,0.02016472,100960.0,100950.0,0.60307249]
[1733934274787,0.03336471,100970.0,100950.0,0.15]
[1733934275011,0.0481,100960.0,100950.0,0.15016472]
[1733934275223,0.6104,100960.0,100950.0,0.00016472]
[1733934275429,0.71070845,100960.0,100950.0,0.00016472]
[1733934275843,0.71970845,100960.0,100950.0,0.00016472]
[1733934276464,0.71870845,100960.0,100950.0,0.00016472]
[1733934276672,0.71170845,100960.0,100950.0,0.00316472]
[1733934277090,0.71270845,100960.0,100950.0,0.00316472]
[1733934278151,0.98800645,100960.0,100950.0,0.00316472]
[1733934278982,0.81119129,100960.0,100950.0,0.00316472]
[1733934279186,0.81119129,100960.0,100950.0,0.00016472]
[1733934279187,1.00195596,100960.0,100950.0,0.00016472]
[1733934279605,1.00195596,100960.0,100950.0,0.01116472]
[1733934279812,0.46265596,100960.0,100950.0,0.01116472]
[1733934280929,0.15,100950.0,100920.0,0.26361104]
[1733934281151,0.023,100940.0,100920.0,0.26361104]
[1733934281581,0.12330845,100940.0,100920.0,0.26361104]
[1733934281832,0.12330845,100940.0,100920.0,0.35278504]
[1733934282062,0.023,100940.0,100930.0,0.11361104]
[1733934283134,0.002,100940.0,100930.0,0.35278104]
[1733934283341,0.008,100940.0,100930.0,0.79800053]
[1733934283562,0.006,100940.0,100930.0,0.89800053]
[1733934283776,0.001,100940.0,100930.0,0.90600053]
[1733934284615,0.10290263,100990.0,100960.0,0.15]
[1733934284821,0.35376045,100990.0,100970.0,0.11361104]
[1733934285031,0.35376045,100990.0,100960.0,0.239138]
[1733934285032,0.5393,100980.0,100960.0,0.26361104]
[1733934285249,0.5393,100980.0,100960.0,0.15]
[1733934285467,0.5293,100980.0,100960.0,0.15]
[1733934285670,0.62960845,100980.0,100960.0,0.239143]
[1733934286937,0.63960845,100980.0,100960.0,0.240143]
[1733934287138,0.63960845,100980.0,100960.0,0.49863362]
[1733934287341,0.5393,100980.0,100960.0,0.58777662]
[1733934287548,0.5393,100980.0,100970.0,0.089135]
[1733934287549,0.5623,100980.0,100970.0,0.089135]
[1733934287728,0.5393,100980.0,100970.0,0.40848562]
[1733934288606,0.5363,100980.0,100970.0,0.40848562]
[1733934288818,0.5293,100980.0,100970.0,0.15]
[1733934289029,0.63060845,100980.0,100970.0,0.165]
[1733934289253,0.44695161,100980.0,100970.0,0.015]
[1733934289465,0.5623,100960.0,100940.0,0.089157]
[1733934289667,0.5623,100960.0,100940.0,0.25845772]
[1733934290092,0.5393,100970.0,100950.0,0.16935062]
[1733934290323,0.5393,100980.0,100970.0,0.006]
[1733934290529,0.001,100980.0,100970.0,0.006]
[1733934290734,0.001,100980.0,100970.0,0.095135]
[1733934291561,0.001,100980.0,100970.0,0.26448562]
[1733934292185,0.71112315,100990.0,100970.0,0.34762062]
[1733934292399,0.71112315,100990.0,100970.0,0.17827]
[1733934292603,0.56112315,100990.0,100970.0,0.178265]
[1733934292819,0.001,100980.0,100960.0,0.49762862]
[1733934293022,0.71112315,100990.0,100970.0,0.25848562]
[1733934293252,0.71212315,100990.0,100970.0,0.25848562]
[1733934293459,0.71312315,100990.0,100970.0,0.25848562]
[1733934293670,0.023,100980.0,100970.0,0.16935062]
[1733934293882,0.023,100980.0,100960.0,0.239138]
[1733934294107,0.023,100980.0,100960.0,0.58676662]
[1733934294323,0.023,100980.0,100960.0,0.58676562]
[1733934294939,0.023,100980.0,100960.0,0.40848862]
[1733934295149,0.023,100980.0,100960.0,0.31935062]
[1733934295370,0.023,100980.0,100970.0,0.16935062]
[1733934295572,0.023,100980.0,100960.0,0.31935062]
[1733934295785,0.27330845,100980.0,100960.0,0.16935062]
[1733934296412,0.27330845,100980.0,100950.0,0.43679462]
[1733934296637,0.27830845,100980.0,100960.0,0.16935062]
[1733934296867,0.27830845,100980.0,100970.0,0.6258669]
[1733934296868,0.005,100980.0,100970.0,0.6258669]
[1733934297074,0.005,100980.0,100970.0,1.27944172]
[1733934297075,0.00165875,100980.0,100970.0,1.27944172]
[1733934297284,0.00165875,100980.0,100970.0,1.21773291]
[1733934297489,0.00165875,100980.0,100970.0,1.21800608]
[1733934297698,0.00165875,100980.0,100970.0,1.00035162]
[1733934297923,0.00054937,100990.0,100980.0,0.389126]
[1733934298149,0.00054937,100990.0,100980.0,1.26825893]
[1733934298364,0.00054937,100990.0,100980.0,1.18119124]
[1733934299223,0.00954937,100990.0,100980.0,1.28219124]
[1733934299462,3.7e-07,100990.0,100980.0,1.19520493]
[1733934299673,1.8398672,101000.0,100990.0,0.389117]
[1733934299881,1.84003194,101000.0,100990.0,1.21990033]
[1733934300094,1.74102194,101000.0,100990.0,1.37229593]
[1733934300315,1.74102194,101000.0,100990.0,1.26548424]
[1733934300538,1.67463779,101000.0,100990.0,0.95288843]
[1733934300755,1.67463779,101000.0,100990.0,1.25760001]
[1733934301187,1.67463779,101000.0,100990.0,1.42695063]
[1733934301831,1.66570097,101000.0,100990.0,1.29635434]
[1733934302036,1.66075382,101000.0,100990.0,1.29635434]
[1733934302247,1.66362089,101000.0,100990.0,1.29635434]
[1733934302449,1.6609641,101000.0,100990.0,1.29735434]
[1733934303121,1.6609641,101000.0,100990.0,1.42797397]
[1733934303588,1.6609641,101000.0,100990.0,1.42795904]
[1733934304700,1.59196409,101000.0,100990.0,1.42795904]
[1733934305138,1.55236009,101000.0,100990.0,1.42795904]
[1733934305358,1.49295409,101000.0,100990.0,2.12795904]
[1733934305574,1.4757469,101000.0,100990.0,2.1498056]
[1733934305787,1.46827314,101000.0,100990.0,2.20554019]
[1733934305991,1.37037114,101000.0,100990.0,2.20554019]
[1733934306201,1.29116314,101000.0,100990.0,1.95519324]
[1733934306421,1.29116314,101000.0,100990.0,2.14120879]
[1733934306642,1.29116314,101000.0,100990.0,2.11820879]
[1733934306865,1.29116314,101000.0,100990.0,2.14119977]
[1733934307072,1.27136114,101000.0,100990.0,2.14119977]
[1733934307279,1.17622967,101000.0,100990.0,1.92380179]
[1733934307490,1.17258916,101000.0,100990.0,2.14102202]
[1733934307910,1.16158916,101000.0,100990.0,2.14002202]
[1733934308122,1.05863588,101000.0,100990.0,2.14002202]
[1733934308328,1.04932073,101000.0,100990.0,2.14002202]
[1733934308552,1.04408252,101000.0,100990.0,2.31367865]
[1733934309177,0.96487452,101000.0,100990.0,2.31367865]
[1733934309412,0.94053937,101000.0,100990.0,2.33327496]
[1733934309622,0.86713478,101000.0,100990.0,2.15961833]
[1733934309829,0.8339926,101000.0,100990.0,2.19235292]
[1733934310049,0.7745866,101000.0,100990.0,2.15961833]
[1733934310256,0.7349826,101000.0,100990.0,1.85961833]
[1733934310479,0.7349826,101000.0,100990.0,1.61277772]
[1733934310706,0.7349826,101000.0,100990.0,1.1934271]
[1733934310967,0.7349826,101000.0,100990.0,0.8895945]
[1733934311168,0.7329826,101000.0,100990.0,0.88959447]
[1733934311380,0.7329826,101000.0,100990.0,0.74159447]
[1733934311593,0.7329826,101000.0,100990.0,0.65677238]
[1733934311809,0.7329826,101000.0,100990.0,0.65277238]
[1733934312021,0.7329826,101000.0,100990.0,0.65377238]
[1733934312263,0.7409826,101000.0,100990.0,0.65377238]
[1733934312470,0.7409826,101000.0,100990.0,0.50877607]
[1733934312685,0.7499826,101000.0,100990.0,0.50977607]
[1733934312910,0.7499826,101000.0,100990.0,0.090117]
[1733934313143,0.7499826,101000.0,100990.0,0.001]
[1733934313376,0.7479826,101000.0,100990.0,0.001]
[1733934313615,0.7479826,101000.0,100990.0,0.090117]
[1733934313826,0.7529826,101000.0,100990.0,0.090117]
[1733934314047,0.7529826,101000.0,100990.0,0.25946762]
[1733934314252,0.7329826,101000.0,100990.0,0.50877607]
[1733934314476,0.7329826,101000.0,100990.0,0.66077607]
[1733934314690,0.66598259,101000.0,100990.0,0.41046762]
[1733934314916,0.66598259,101000.0,100990.0,0.40846762]
[1733934315129,0.66598259,101000.0,100990.0,0.65877607]
[1733934315333,0.67298259,101000.0,100990.0,0.50877607]
[1733934315554,0.67298259,101000.0,100990.0,0.50977607]
[1733934315762,0.68198259,101000.0,100990.0,0.50977607]
[1733934315999,0.67298259,101000.0,100990.0,0.50877607]
[1733934316231,0.67498259,101000.0,100990.0,0.50877607]
[1733934317056,0.66598259,101000.0,100990.0,0.40846762]
[1733934317518,0.66398259,101000.0,100990.0,0.40846762]
[1733934317938,0.67298259,101000.0,100990.0,0.40946762]
[1733934318356,0.68198259,101000.0,100990.0,0.40946762]
[1733934318575,0.67298259,101000.0,100990.0,0.40846762]
[1733934318841,0.67498259,101000.0,100990.0,0.40846762]
[1733934319050,0.67298259,101000.0,100990.0,0.40846762]
[1733934319464,0.68198259,101000.0,100990.0,0.40846762]
[1733934319675,0.61298258,101000.0,100990.0,0.82812669]
[1733934320128,0.61298258,101000.0,100990.0,0.65877607]
[1733934320790,0.59498258,101000.0,100990.0,0.65877607]
[1733934321007,0.59698258,101000.0,100990.0,0.65877607]
[1733934321233,0.59598258,101000.0,100990.0,0.65877607]
[1733934321448,0.59598258,101000.0,100990.0,0.82812669]
[1733934321655,0.60398258,101000.0,100990.0,0.65977607]
[1733934321870,0.60398258,101000.0,100990.0,0.65877607]
[1733934322079,0.61298258,101000.0,100990.0,0.65877607]
[1733934322292,0.62198258,101000.0,100990.0,0.65977607]
[1733934322507,0.61298258,101000.0,100990.0,0.65977607]
[1733934322735,0.61998258,101000.0,100990.0,0.65977607]
[1733934323595,0.61998258,101000.0,100990.0,0.50977607]
[1733934323822,0.60198258,101000.0,100990.0,0.65877607]
[1733934324090,0.59498258,101000.0,100990.0,0.65877607]
[1733934324301,0.60398258,101000.0,100990.0,0.49042545]
[1733934324514,0.61298258,101000.0,100990.0,0.49042545]
[1733934324730,0.54398257,101000.0,100990.0,0.95662669]
[1733934325608,0.54398257,101000.0,100990.0,0.90692669]
[1733934326443,0.54398257,101000.0,100990.0,0.99373531]
[1733934326891,0.54398257,101000.0,100990.0,0.65977607]
[1733934327329,0.54398257,101000.0,100990.0,0.74658469]
[1733934328182,0.54398257,101000.0,100990.0,0.34627624]
[1733934328388,0.62178257,101000.0,100990.0,0.25946762]
[1733934329555,0.62178257,101000.0,100990.0,0.40946762]
[1733934329820,0.55278256,101000.0,100990.0,0.40946762]
[1733934330312,0.55278256,101000.0,100990.0,0.39956562]
[1733934330513,0.55278256,101000.0,100990.0,0.32035062]
[1733934330667,0.55278256,101000.0,100990.0,0.39956562]
[1733934330871,0.57578256,101000.0,100990.0,0.001]
[1733934331097,0.67609101,101000.0,100990.0,0.001]
[1733934331676,0.87119101,101000.0,100990.0,0.001]
[1733934331926,0.91921001,101000.0,100990.0,0.001]
[1733934332122,0.2719,100980.0,100960.0,0.16935062]
[1733934332326,0.37220845,100980.0,100960.0,0.16935062]
[1733934332520,0.023,100970.0,100940.0,0.48707995]
[1733934332724,0.12330845,100970.0,100950.0,0.16935062]
[1733934333194,0.12330845,100970.0,100960.0,0.16935062]
[1733934333335,0.12330845,100970.0,100950.0,0.16935062]